[Event "57th Biel Festival ATO 2024"]
[Site "Biel"]
[Date "2024.07.17"]
[Round "2.31"]
[White "Leuenberger, Urs"]
[Black "Christoffersen, Odd"]
[Result "1/2-1/2"]
[ECO "C42"]
[WhiteElo "1903"]
[BlackElo "1676"]
[Annotator "RC"]
[PlyCount "124"]
[EventDate "2024.07.03"]
[EventType "swiss"]
[EventCountry "SUI"]
[SourceTitle "playchess.com"]
[Source "ChessBase"]
[SourceQuality "1"]
[TimeControl "40/5400+30:1800+30"]

1. e4 {[%emt 0:00:15]} e5 {[%emt 0:00:24]} 2. Nf3 {[%emt 0:00:19]} Nf6 {[%emt 0:00:15]} 3. Nxe5 {[%emt 0:00:34]} d6 {[%emt 0:00:13]} 4. Nf3 {[%emt 0:01:25]} Nxe4 {[%emt 0:00:22]} 5. d3 {[%emt 0:00:40]} Nf6 {[%emt 0:00:40]} 6. Nc3 {[%emt 0:00:55]} Be7 {[%emt 0:01:36]} 7. d4 {[%emt 0:03:23]} Bg4 {[%emt 0:11:20]} 8. h3 {[%emt 0:02:41]} Bh5 {[%emt 0:05:30]} 9. g4 {[%emt 0:01:57]} Bg6 {[%emt 0:00:13]} 10. Nh4 {[%emt 0:01:34]} Nfd7 {[%emt 0:01:43]} 11. Nxg6 {[%emt 0:00:48]} hxg6 {[%emt 0:00:03]} 12. Bc4 {[%emt 0:06:13]} Nb6 {[%emt 0:02:19]} 13. Bb3 {[%emt 0:03:23]} d5 {[%emt 0:01:16]} 14. Qf3 {[%emt 0:04:04]} c6 {[%emt 0:00:34]} 15. Bf4 {[%emt 0:01:03]} Na6 {[%emt 0:04:02]} 16. O-O-O {[%emt 0:10:29]} Qd7 {[%emt 0:02:45]} 17. Nb1 {[%emt 0:07:56]} O-O-O {[%emt 0:06:53]} 18. Nd2 {[%emt 0:03:47]} Rdf8 {[%emt 0:04:42]} 19. c4 {[%emt 0:08:47]} Nc7 {[%emt 0:18:57]} 20. Bxc7 {[%emt 0:11:44]} Kxc7 {[%emt 0:00:38]} 21. a4 {[%emt 0:05:07]} Bg5 {[%emt 0:05:24]} 22. Qg3+ {[%emt 0:04:41]} Kc8 {[%emt 0:02:17]} 23. f4 {[%emt 0:02:54]} dxc4 {[%emt 0:06:31]} 24. fxg5 {[%emt 0:07:43]} cxb3 {[%emt 0:00:21]} 25. a5 {[%emt 0:00:52]} Nd5 {[%emt 0:00:57]} 26. Nxb3 {[%emt 0:00:25]} Qc7 {[%emt 0:01:51]} 27. Qxc7+ {[%emt 0:01:13]} Kxc7 {[%emt 0:00:21]} 28. Rdf1 {[%emt 0:00:17]} b6 {[%emt 0:01:26]} 29. Rf3 {[%emt 0:00:21]} f5 {[%emt 0:00:54]} 30. gxf6 {[%emt 0:00:17]} Rxf6 {[%emt 0:01:59]} 31. axb6+ {[%emt 0:00:29]} axb6 {[%emt 0:00:15]} 32. Nd2 {[%emt 0:00:17]} Re8 {[%emt 0:00:54]} 33. Rhf1 {[%emt 0:01:07]} Ref8 {[%emt 0:04:50]} 34. Rxf6 {[%emt 0:01:18]} gxf6 {[%emt 0:03:30]} 35. Ne4 {[%emt 0:02:02]} Kd7 {[%emt 0:03:46]} 36. Kd2 {[%emt 0:00:52]} Ke7 {[%emt 0:00:57]} 37. Re1 {[%emt 0:00:16]} Kf7 {[%emt 0:00:51]} 38. Nd6+ {[%emt 0:01:01]} Kg8 {[%emt 0:02:53]} 39. Rc1 {[%emt 0:00:18]} Nb4 {[%emt 0:01:35]} 40. Rc4 {[%emt 0:00:00]} c5 {[%emt 0:00:00]} 41. Ne4 {[%emt 0:05:50]} f5 {[%emt 0:06:32]} 42. dxc5 {[%emt 0:02:58]} fxe4 {[%emt 0:01:30]} 43. Rxb4 {[%emt 0:00:21]} bxc5 {[%emt 0:00:58]} 44. Rxe4 {[%emt 0:00:11]} Rb8 {[%emt 0:04:22]} 45. Kc3 {[%emt 0:00:31]} Rb5 {[%emt 0:00:39]} 46. b3 {[%emt 0:00:42]} Kg7 {[%emt 0:00:34]} 47. Kc2 {[%emt 0:01:29]} Kf6 {[%emt 0:03:07]} 48. h4 {[%emt 0:00:19]} Ra5 {[%emt 0:01:41]} 49. Rf4+ {[%emt 0:01:29]} Ke5 {[%emt 0:00:48]} 50. Rf3 {[%emt 0:00:35]} Ra2+ {[%emt 0:01:12]} 51. Kd3 {[%emt 0:01:04]} Rg2 {[%emt 0:00:44]} 52. g5 {[%emt 0:00:54]} Rh2 {[%emt 0:00:35]} 53. Kc4 {[%emt 0:02:01]} Rxh4+ {[%emt 0:00:31]} 54. Kxc5 {[%emt 0:00:09]} Rg4 {[%emt 0:00:23]} 55. b4 {[%emt 0:00:43]} Rxg5 {[%emt 0:00:19]} 56. Rb3 {[%emt 0:00:30]} Kf4+ {[%emt 0:01:41]} 57. Kc6 {[%emt 0:00:23]} Rh5 {[%emt 0:00:28]} 58. b5 {[%emt 0:00:22]} g5 {[%emt 0:00:21]} 59. b6 {[%emt 0:00:47]} g4 {[%emt 0:00:33]} 60. b7 {[%emt 0:00:31]} Rh8 {[%emt 0:00:13]} 61. b8=Q+ {[%emt 0:01:08]} Rxb8 {[%emt 0:00:12]} 62. Rxb8 {[%emt 0:00:06]} g3 {[%emt 0:00:43]} 1/2-1/2

[Event "57th Biel Festival ATO 2024"]
[Site "Biel"]
[Date "2024.07.17"]
[Round "2.33"]
[White "Gotti, Nicola"]
[Black "Trubini, Timon"]
[Result "1/2-1/2"]
[ECO "B92"]
[WhiteElo "1804"]
[BlackElo "1714"]
[Annotator "NA RC"]
[PlyCount "61"]
[EventDate "2024.07.03"]
[EventType "swiss"]
[EventCountry "SUI"]
[SourceTitle "playchess.com"]
[Source "ChessBase"]
[SourceQuality "1"]
[TimeControl "40/5400+30:1800+30"]

1. e4 {[%emt 0:00:06]} c5 {[%emt 0:00:04]} 2. Nf3 {[%emt 0:00:10]} d6 {[%emt 0:00:03]} 3. d4 {[%emt 0:00:08]} cxd4 {[%emt 0:00:03]} 4. Nxd4 {[%emt 0:01:05]} Nf6 {[%emt 0:00:04]} 5. Nc3 {[%emt 0:00:56]} a6 {[%emt 0:00:05]} 6. Be2 {[%emt 0:01:09]} e5 {[%emt 0:00:31]} 7. Nb3 {[%emt 0:00:13]} Be6 {[%emt 0:00:10]} 8. Be3 {[%emt 0:00:41]} Be7 {[%emt 0:00:26]} 9. Nd5 {[%emt 0:00:27]} Nbd7 {[%emt 0:04:29]} 10. Qd3 {[%emt 0:02:45]} O-O {[%emt 0:02:52]} 11. Rd1 {[%emt 0:02:56]} Rc8 {[%emt 0:09:03]} 12. c3 {[%emt 0:02:24]} Bxd5 {[%emt 0:07:37]} 13. exd5 {[%emt 0:00:13]} Nb6 {[%emt 0:00:19]} 14. Bxb6 {[%emt 0:01:12]} Qxb6 {[%emt 0:00:06]} 15. Qe3 {[%emt 0:01:50]} Qxe3 {[%emt 0:00:37]} 16. fxe3 {[%emt 0:00:03]} Ne4 {[%emt 0:05:57]} 17. Bf3 {[%emt 0:02:07]} Nc5 {[%emt 0:00:17]} 18. Nxc5 {[%emt 0:01:05]} Rxc5 {[%emt 0:00:09]} 19. O-O {[%emt 0:01:10]} Rfc8 {[%emt 0:04:01]} 20. Bg4 {[%emt 0:03:14]} Rf8 {[%emt 0:01:35]} 21. Be2 {[%emt 0:01:50]} Rcc8 {[%emt 0:00:39]} 22. Rf3 {[%emt 0:01:35]} Bd8 {[%emt 0:01:11]} 23. e4 {[%emt 0:00:51]} Bb6+ {[%emt 0:00:11]} 24. Kh1 {[%emt 0:00:27]} f6 {[%emt 0:00:57]} 25. h4 {[%emt 0:02:36]} Kf7 {[%emt 0:00:34]} 26. g4 {[%emt 0:00:51]} Ke7 {[%emt 0:00:04]} 27. Rdf1 {[%emt 0:00:58]} h6 {[%emt 0:01:53]} 28. Rg3 {[%emt 0:04:05]} g5 {[%emt 0:02:54]} 29. Rh3 {[%emt 0:01:16]} Rh8 {[%emt 0:00:07]} 30. c4 {[%emt 0:02:28]} Bd4 {[%emt 0:01:12]} 31. b3 {[%emt 0:02:13]} 1/2-1/2

[Event "57th Biel Festival ATO 2024"]
[Site "Biel"]
[Date "2024.07.17"]
[Round "2.34"]
[White "Shin, Seungmin"]
[Black "Schaer, Bryan"]
[Result "0-1"]
[ECO "C02"]
[WhiteElo "1493"]
[BlackElo "1803"]
[Annotator "NA RC"]
[PlyCount "40"]
[EventDate "2024.07.03"]
[EventType "swiss"]
[EventCountry "SUI"]
[SourceTitle "playchess.com"]
[Source "ChessBase"]
[SourceQuality "1"]
[TimeControl "40/5400+30:1800+30"]

1. e4 {[%emt 0:00:28]} e6 {[%emt 0:00:10]} 2. d4 {[%emt 0:00:04]} d5 {[%emt 0:00:07]} 3. e5 {[%emt 0:00:05]} c5 {[%emt 0:00:06]} 4. c3 {[%emt 0:00:04]} Nc6 {[%emt 0:00:05]} 5. Nf3 {[%emt 0:00:04]} Bd7 {[%emt 0:00:27]} 6. Be2 {[%emt 0:00:35]} Nge7 {[%emt 0:00:43]} 7. Be3 {[%emt 0:06:43]} Nf5 {[%emt 0:03:39]} 8. O-O {[%emt 0:00:34]} Be7 {[%emt 0:02:13]} 9. Re1 {[%emt 0:03:10]} Qb6 {[%emt 0:02:02]} 10. b3 {[%emt 0:00:32]} cxd4 {[%emt 0:06:40]} 11. cxd4 {[%emt 0:00:42]} Rc8 {[%emt 0:01:00]} 12. a3 {[%emt 0:01:38]} f6 {[%emt 0:03:50]} 13. Bf1 {[%emt 0:14:06]} O-O {[%emt 0:07:51]} 14. exf6 {[%emt 0:19:26]} Bxf6 {[%emt 0:00:43]} 15. Ne5 {[%emt 0:00:43]} Nxe5 {[%emt 0:05:43]} 16. dxe5 {[%emt 0:00:31]} Nxe3 {[%emt 0:00:04]} 17. Rxe3 {[%emt 0:00:00]} Bxe5 {[%emt 0:00:07]} 18. Ra2 {[%emt 0:01:38]} Bf4 {[%emt 0:03:46]} 19. Re1 {[%emt 0:03:10]} Rc1 {[%emt 0:03:27]} 20. Qe2 {[%emt 0:00:35]} Bb5 {[%emt 0:03:19]} 0-1

[Event "57th Biel Festival ATO 2024"]
[Site "Biel"]
[Date "2024.07.17"]
[Round "2.35"]
[White "Primbetova, Raikhan"]
[Black "Ehrsam, Andreas"]
[Result "1-0"]
[ECO "A38"]
[WhiteElo "1534"]
[BlackElo "1793"]
[Annotator "NA RC"]
[PlyCount "135"]
[EventDate "2024.07.03"]
[EventType "swiss"]
[EventCountry "SUI"]
[SourceTitle "playchess.com"]
[Source "ChessBase"]
[SourceQuality "1"]
[TimeControl "40/5400+30:1800+30"]

1. c4 {[%emt 0:00:03]} c5 {[%emt 0:00:22]} 2. Nc3 {[%emt 0:00:07]} Nc6 {[%emt 0:00:24]} 3. Nf3 {[%emt 0:00:17]} g6 {[%emt 0:00:35]} 4. g3 {[%emt 0:00:09]} Bg7 {[%emt 0:00:14]} 5. Bg2 {[%emt 0:00:06]} Nf6 {[%emt 0:01:00]} 6. O-O {[%emt 0:00:12]} O-O {[%emt 0:00:12]} 7. d3 {[%emt 0:00:27]} d6 {[%emt 0:04:12]} 8. a3 {[%emt 0:00:43]} a5 {[%emt 0:00:15]} 9. Qc2 {[%emt 0:03:47]} Nd7 {[%emt 0:04:54]} 10. e3 {[%emt 0:05:23]} Nde5 {[%emt 0:02:29]} 11. Nxe5 {[%emt 0:10:54]} Nxe5 {[%emt 0:00:51]} 12. f4 {[%emt 0:01:32]} Nc6 {[%emt 0:01:59]} 13. Bd2 {[%emt 0:04:03]} f5 {[%emt 0:00:51]} 14. Nb5 {[%emt 0:03:47]} e5 {[%emt 0:03:53]} 15. Bc3 {[%emt 0:08:20]} Be6 {[%emt 0:02:32]} 16. Rae1 {[%emt 0:02:04]} Re8 {[%emt 0:00:33]} 17. e4 {[%emt 0:09:44]} Qd7 {[%emt 0:03:34]} 18. b3 {[%emt 0:03:57]} b6 {[%emt 0:02:50]} 19. Kh1 {[%emt 0:01:40]} Rad8 {[%emt 0:01:25]} 20. Qb2 {[%emt 0:05:43]} Nd4 {[%emt 0:10:19]} 21. Nxd4 {[%emt 0:12:24]} cxd4 {[%emt 0:02:02]} 22. Bd2 {[%emt 0:00:18]} fxe4 {[%emt 0:00:24]} 23. dxe4 {[%emt 0:02:38]} Rf8 {[%emt 0:02:30]} 24. Qc1 {[%emt 0:05:27]} Rc8 {[%emt 0:01:44]} 25. a4 {[%emt 0:00:57]} Rf7 {[%emt 0:06:16]} 26. Rf2 {[%emt 0:03:29]} Qe7 {[%emt 0:08:28]} 27. Ref1 {[%emt 0:00:39]} Rcf8 {[%emt 0:05:29]} 28. Qc2 {[%emt 0:01:03]} Qd7 {[%emt 0:00:39]} 29. Qd3 {[%emt 0:02:54]} Bh6 {[%emt 0:02:16]} 30. f5 {[%emt 0:00:37]} Bxd2 {[%emt 0:00:15]} 31. fxe6 {[%emt 0:00:16]} Qxe6 {[%emt 0:04:33]} 32. Rxf7 {[%emt 0:00:15]} Rxf7 {[%emt 0:00:09]} 33. Rxf7 {[%emt 0:00:08]} Qxf7 {[%emt 0:00:01]} 34. Qxd2 {[%emt 0:00:06]} Kg7 {[%emt 0:00:43]} 35. Kg1 {[%emt 0:00:11]} Qc7 {[%emt 0:00:32]} 36. Qd3 {[%emt 0:02:11]} Qc5 {[%emt 0:00:42]} 37. Bf3 {[%emt 0:02:06]} Qb4 {[%emt 0:01:37]} 38. Kg2 {[%emt 0:02:44]} Qe1 {[%emt 0:01:54]} 39. h4 {[%emt 0:01:54]} Qb4 {[%emt 0:01:55]} 40. Be2 {[%emt 0:00:00]} Qa3 {[%emt 0:00:00]} 41. Bd1 {[%emt 0:07:00]} Qb4 {[%emt 0:05:21]} 42. Qe2 {[%emt 0:03:07]} Qc3 {[%emt 0:01:17]} 43. Bc2 {[%emt 0:00:16]} Qb4 {[%emt 0:02:15]} 44. Kh3 {[%emt 0:01:12]} Qc3 {[%emt 0:00:33]} 45. Kh2 {[%emt 0:02:58]} Qb4 {[%emt 0:00:20]} 46. g4 {[%emt 0:01:18]} Qc3 {[%emt 0:00:53]} 47. g5 {[%emt 0:00:55]} Kg8 {[%emt 0:00:50]} 48. c5 {[%emt 0:08:44]} dxc5 {[%emt 0:02:45]} 49. Qc4+ {[%emt 0:00:15]} Qxc4 {[%emt 0:00:12]} 50. bxc4 {[%emt 0:00:03]} Kf7 {[%emt 0:00:43]} 51. Kg3 {[%emt 0:00:21]} Ke6 {[%emt 0:00:38]} 52. Kg4 {[%emt 0:01:17]} Kf7 {[%emt 0:00:25]} 53. Bd3 {[%emt 0:06:05]} Kg7 {[%emt 0:00:20]} 54. Be2 {[%emt 0:03:14]} Kf7 {[%emt 0:00:10]} 55. Kg3 {[%emt 0:01:58]} Kg7 {[%emt 0:01:07]} 56. Bg4 {[%emt 0:00:38]} Kf8 {[%emt 0:00:14]} 57. Be6 {[%emt 0:00:40]} Kg7 {[%emt 0:00:11]} 58. h5 {[%emt 0:01:56]} Kf8 {[%emt 0:00:12]} 59. h6 {[%emt 0:00:09]} Ke7 {[%emt 0:02:25]} 60. Bg8 {[%emt 0:00:07]} Kf8 {[%emt 0:02:02]} 61. Bxh7 {[%emt 0:00:09]} Kf7 {[%emt 0:00:12]} 62. Kf2 {[%emt 0:00:19]} b5 {[%emt 0:01:31]} 63. cxb5 {[%emt 0:00:07]} d3 {[%emt 0:00:15]} 64. Ke3 {[%emt 0:00:13]} c4 {[%emt 0:00:04]} 65. b6 {[%emt 0:00:15]} d2 {[%emt 0:02:43]} 66. Kxd2 {[%emt 0:00:06]} c3+ {[%emt 0:00:05]} 67. Kxc3 {[%emt 0:00:04]} Kf8 {[%emt 0:00:23]} 68. b7 {[%emt 0:00:05]} 1-0

[Event "57th Biel Festival ATO 2024"]
[Site "Biel"]
[Date "2024.07.17"]
[Round "2.37"]
[White "Van Bogaert, Olivier"]
[Black "Meise, Volker"]
[Result "1-0"]
[ECO "A29"]
[WhiteElo "1815"]
[BlackElo "1772"]
[Annotator "NA RC"]
[PlyCount "79"]
[EventDate "2024.07.03"]
[EventType "swiss"]
[EventCountry "SUI"]
[SourceTitle "playchess.com"]
[Source "ChessBase"]
[SourceQuality "1"]
[TimeControl "40/5400+30:1800+30"]

1. c4 {[%emt 0:00:20]} e5 {[%emt 0:00:13]} 2. g3 {[%emt 0:00:11]} Nf6 {[%emt 0:01:37]} 3. Bg2 {[%emt 0:00:08]} Bc5 {[%emt 0:01:53]} 4. Nc3 {[%emt 0:00:41]} O-O {[%emt 0:01:10]} 5. Nf3 {[%emt 0:02:00]} Nc6 {[%emt 0:03:58]} 6. O-O {[%emt 0:00:47]} d6 {[%emt 0:01:18]} 7. d3 {[%emt 0:11:07]} Be6 {[%emt 0:05:59]} 8. Ng5 {[%emt 0:06:41]} Bd7 {[%emt 0:04:40]} 9. Nge4 {[%emt 0:02:47]} Nxe4 {[%emt 0:04:46]} 10. Bxe4 {[%emt 0:02:27]} f5 {[%emt 0:10:29]} 11. Bd5+ {[%emt 0:07:14]} Kh8 {[%emt 0:00:13]} 12. e3 {[%emt 0:08:28]} Qf6 {[%emt 0:03:57]} 13. Bg2 {[%emt 0:02:58]} Be6 {[%emt 0:20:40]} 14. a3 {[%emt 0:06:48]} a5 {[%emt 0:01:36]} 15. Bd2 {[%emt 0:02:23]} Ne7 {[%emt 0:07:38]} 16. Na4 {[%emt 0:07:35]} c6 {[%emt 0:06:58]} 17. Nxc5 {[%emt 0:07:37]} dxc5 {[%emt 0:00:19]} 18. Bc3 {[%emt 0:00:24]} Ng6 {[%emt 0:00:51]} 19. Qb3 {[%emt 0:04:33]} b5 {[%emt 0:01:58]} 20. Qc2 {[%emt 0:01:03]} Bd7 {[%emt 0:01:14]} 21. cxb5 {[%emt 0:00:37]} cxb5 {[%emt 0:02:14]} 22. Bxa8 {[%emt 0:01:34]} Rxa8 {[%emt 0:00:06]} 23. b4 {[%emt 0:04:13]} cxb4 {[%emt 0:01:51]} 24. axb4 {[%emt 0:00:52]} a4 {[%emt 0:00:21]} 25. Qb2 {[%emt 0:01:29]} Bc6 {[%emt 0:02:58]} 26. f4 {[%emt 0:01:47]} Qd6 {[%emt 0:03:38]} 27. Qc2 {[%emt 0:06:12]} exf4 {[%emt 0:02:10]} 28. e4 {[%emt 0:06:05]} fxe4 {[%emt 0:02:49]} 29. dxe4 {[%emt 0:00:38]} fxg3 {[%emt 0:00:49]} 30. Rf7 {[%emt 0:01:38]} Ne5 {[%emt 0:03:11]} 31. Bxe5 {[%emt 0:02:01]} Qxe5 {[%emt 0:00:09]} 32. Raf1 {[%emt 0:00:09]} Qd4+ {[%emt 0:02:05]} 33. Kg2 {[%emt 0:01:39]} Bxe4+ {[%emt 0:00:30]} 34. Kh3 {[%emt 0:01:06]} g5 {[%emt 0:01:30]} 35. Rf8+ {[%emt 0:00:42]} Rxf8 {[%emt 0:00:08]} 36. Rxf8+ {[%emt 0:00:01]} Kg7 {[%emt 0:00:13]} 37. Qc8 {[%emt 0:00:52]} g4+ {[%emt 0:01:21]} 38. Kh4 {[%emt 0:00:24]} gxh2 {[%emt 0:00:25]} 39. Rg8+ {[%emt 0:00:11]} Kh6 {[%emt 0:00:51]} 40. Qf8+ {[%emt 0:00:00]} 1-0

[Event "57th Biel Festival ATO 2024"]
[Site "Biel"]
[Date "2024.07.17"]
[Round "2.38"]
[White "Huber, Ruth"]
[Black "Voet, Dirk"]
[Result "0-1"]
[ECO "A04"]
[WhiteElo "1612"]
[BlackElo "1869"]
[Annotator "NA RC"]
[PlyCount "50"]
[EventDate "2024.07.03"]
[EventType "swiss"]
[EventCountry "SUI"]
[SourceTitle "playchess.com"]
[Source "ChessBase"]
[SourceQuality "1"]
[TimeControl "40/5400+30:1800+30"]

1. Nf3 {[%emt 0:01:25]} g6 {[%emt 0:13:45]} 2. g3 {[%emt 0:00:47]} b6 {[%emt 0:00:16]} 3. Bg2 {[%emt 0:00:12]} Bb7 {[%emt 0:00:07]} 4. O-O {[%emt 0:00:06]} d6 {[%emt 0:00:31]} 5. c4 {[%emt 0:00:36]} e5 {[%emt 0:00:13]} 6. Nc3 {[%emt 0:00:40]} Bg7 {[%emt 0:02:10]} 7. d3 {[%emt 0:01:12]} Nc6 {[%emt 0:00:32]} 8. a3 {[%emt 0:00:27]} f5 {[%emt 0:01:34]} 9. e3 {[%emt 0:01:31]} Nf6 {[%emt 0:01:29]} 10. Rb1 {[%emt 0:03:09]} O-O {[%emt 0:01:02]} 11. b4 {[%emt 0:00:53]} Qd7 {[%emt 0:05:12]} 12. Bb2 {[%emt 0:02:09]} Nd8 {[%emt 0:00:44]} 13. b5 {[%emt 0:03:31]} Ne6 {[%emt 0:00:23]} 14. a4 {[%emt 0:01:32]} Rae8 {[%emt 0:05:08]} 15. Ba3 {[%emt 0:09:51]} Nd8 {[%emt 0:21:25]} 16. Qb3 {[%emt 0:04:17]} Kh8 {[%emt 0:01:22]} 17. Rbd1 {[%emt 0:01:55]} h6 {[%emt 0:00:44]} 18. Nh4 {[%emt 0:02:25]} Kh7 {[%emt 0:00:45]} 19. Nf3 {[%emt 0:02:03]} Qf7 {[%emt 0:01:51]} 20. Qb1 {[%emt 0:06:04]} g5 {[%emt 0:11:53]} 21. h3 {[%emt 0:07:18]} Kh8 {[%emt 0:08:57]} 22. Bb2 {[%emt 0:04:18]} g4 {[%emt 0:01:00]} 23. hxg4 {[%emt 0:01:41]} Nxg4 {[%emt 0:00:07]} 24. Nd2 {[%emt 0:02:49]} Qh5 {[%emt 0:01:11]} 25. Nf3 {[%emt 0:04:55]} Bxf3 {[%emt 0:00:23]} 0-1

[Event "57th Biel Festival ATO 2024"]
[Site "Biel"]
[Date "2024.07.17"]
[Round "2.39"]
[White "Ernst, Heinz"]
[Black "Materia, Mario"]
[Result "0-1"]
[ECO "D58"]
[WhiteElo "1830"]
[BlackElo "1590"]
[Annotator "NA RC"]
[PlyCount "76"]
[EventDate "2024.07.03"]
[EventType "swiss"]
[EventCountry "SUI"]
[SourceTitle "playchess.com"]
[Source "ChessBase"]
[SourceQuality "1"]
[TimeControl "40/5400+30:1800+30"]

1. d4 {[%emt 0:00:06]} d5 {[%emt 0:00:12]} 2. c4 {[%emt 0:00:11]} e6 {[%emt 0:00:09]} 3. Nc3 {[%emt 0:00:15]} Nf6 {[%emt 0:00:49]} 4. Bg5 {[%emt 0:00:31]} Be7 {[%emt 0:00:14]} 5. e3 {[%emt 0:00:20]} O-O {[%emt 0:00:49]} 6. Nf3 {[%emt 0:00:43]} h6 {[%emt 0:01:19]} 7. Bh4 {[%emt 0:00:16]} Nbd7 {[%emt 0:01:29]} 8. cxd5 {[%emt 0:00:43]} exd5 {[%emt 0:00:22]} 9. Bd3 {[%emt 0:00:41]} b6 {[%emt 0:00:39]} 10. O-O {[%emt 0:01:03]} Bb7 {[%emt 0:00:37]} 11. Rc1 {[%emt 0:02:15]} Rc8 {[%emt 0:01:28]} 12. Qe2 {[%emt 0:04:25]} c5 {[%emt 0:00:52]} 13. Rfd1 {[%emt 0:02:47]} Re8 {[%emt 0:02:02]} 14. Bf5 {[%emt 0:06:36]} Ne4 {[%emt 0:21:37]} 15. Bxe7 {[%emt 0:21:41]} Qxe7 {[%emt 0:04:22]} 16. Qf1 {[%emt 0:27:41]} g6 {[%emt 0:04:24]} 17. Bh3 {[%emt 0:01:25]} f5 {[%emt 0:02:41]} 18. dxc5 {[%emt 0:09:31]} Nxc3 {[%emt 0:02:30]} 19. Rxc3 {[%emt 0:01:11]} Nxc5 {[%emt 0:00:28]} 20. Rdc1 {[%emt 0:04:03]} Ne4 {[%emt 0:01:14]} 21. Rxc8 {[%emt 0:01:20]} Rxc8 {[%emt 0:00:28]} 22. Rxc8+ {[%emt 0:01:25]} Bxc8 {[%emt 0:00:16]} 23. Qc1 {[%emt 0:03:41]} Qc5 {[%emt 0:02:49]} 24. Qb1 {[%emt 0:01:27]} g5 {[%emt 0:00:32]} 25. b4 {[%emt 0:01:37]} Qd6 {[%emt 0:04:45]} 26. Nd4 {[%emt 0:01:17]} g4 {[%emt 0:00:29]} 27. Qc2 {[%emt 0:02:07]} Bd7 {[%emt 0:00:15]} 28. f3 {[%emt 0:00:39]} Qxb4 {[%emt 0:01:04]} 29. Qc1 {[%emt 0:02:19]} Nf6 {[%emt 0:00:58]} 30. Kf2 {[%emt 0:01:57]} gxh3 {[%emt 0:00:26]} 31. gxh3 {[%emt 0:00:26]} Qc4 {[%emt 0:00:22]} 32. Qb1 {[%emt 0:00:42]} Qc7 {[%emt 0:00:26]} 33. Kg1 {[%emt 0:00:52]} Qc3 {[%emt 0:00:52]} 34. Nxf5 {[%emt 0:00:35]} Bxf5 {[%emt 0:00:27]} 35. Qxf5 {[%emt 0:00:03]} Qxe3+ {[%emt 0:00:10]} 36. Kf1 {[%emt 0:00:41]} Qc1+ {[%emt 0:00:25]} 37. Ke2 {[%emt 0:00:42]} Qb2+ {[%emt 0:00:11]} 38. Kd3 {[%emt 0:00:29]} Qb1+ {[%emt 0:00:06]} 0-1

[Event "57th Biel Festival ATO 2024"]
[Site "Biel"]
[Date "2024.07.17"]
[Round "2.40"]
[White "Kim Rian B"]
[Black "Galerne, Rene"]
[Result "0-1"]
[ECO "B15"]
[WhiteElo "1592"]
[BlackElo "1773"]
[Annotator "NA RC"]
[PlyCount "88"]
[EventDate "2024.07.03"]
[EventType "swiss"]
[EventCountry "SUI"]
[SourceTitle "playchess.com"]
[Source "ChessBase"]
[SourceQuality "1"]
[TimeControl "40/5400+30:1800+30"]

1. e4 {[%emt 0:00:06]} c6 {[%emt 0:00:12]} 2. d4 {[%emt 0:00:36]} d5 {[%emt 0:00:06]} 3. Nc3 {[%emt 0:00:20]} dxe4 {[%emt 0:00:33]} 4. Nxe4 {[%emt 0:00:28]} Nf6 {[%emt 0:00:50]} 5. Nxf6+ {[%emt 0:01:58]} exf6 {[%emt 0:00:10]} 6. Nf3 {[%emt 0:00:48]} Bd6 {[%emt 0:00:50]} 7. Bc4 {[%emt 0:01:07]} O-O {[%emt 0:00:55]} 8. Be3 {[%emt 0:03:35]} Be6 {[%emt 0:01:28]} 9. Bb3 {[%emt 0:00:33]} Re8 {[%emt 0:02:33]} 10. Qd2 {[%emt 0:01:51]} Nd7 {[%emt 0:01:44]} 11. d5 {[%emt 0:02:58]} cxd5 {[%emt 0:01:46]} 12. Bxd5 {[%emt 0:00:27]} Qc7 {[%emt 0:02:08]} 13. b3 {[%emt 0:00:59]} Bxd5 {[%emt 0:03:42]} 14. Qxd5 {[%emt 0:00:25]} Qc3+ {[%emt 0:09:25]} 15. Ke2 {[%emt 0:01:33]} Qxc2+ {[%emt 0:00:25]} 16. Nd2 {[%emt 0:01:56]} Qc7 {[%emt 0:07:37]} 17. Rac1 {[%emt 0:00:21]} Qb8 {[%emt 0:00:07]} 18. Nc4 {[%emt 0:00:40]} Re6 {[%emt 0:01:24]} 19. Nxd6 {[%emt 0:01:18]} Rxd6 {[%emt 0:04:41]} 20. Rc8+ {[%emt 0:01:18]} Qxc8 {[%emt 0:00:07]} 21. Qxd6 {[%emt 0:00:10]} Ne5 {[%emt 0:01:17]} 22. Rc1 {[%emt 0:00:44]} Nc6 {[%emt 0:03:25]} 23. b4 {[%emt 0:08:19]} Qg4+ {[%emt 0:03:11]} 24. Kf1 {[%emt 0:00:50]} Rd8 {[%emt 0:00:35]} 25. f3 {[%emt 0:00:41]} Rxd6 {[%emt 0:05:17]} 26. fxg4 {[%emt 0:00:14]} a6 {[%emt 0:00:41]} 27. Bc5 {[%emt 0:00:37]} Re6 {[%emt 0:01:29]} 28. Re1 {[%emt 0:00:17]} h6 {[%emt 0:03:46]} 29. Kf2 {[%emt 0:02:38]} Ne5 {[%emt 0:01:05]} 30. Kg3 {[%emt 0:01:24]} Nd3 {[%emt 0:03:26]} 31. Rxe6 {[%emt 0:00:10]} fxe6 {[%emt 0:00:09]} 32. Bd6 {[%emt 0:00:43]} Kf7 {[%emt 0:00:49]} 33. Kf3 {[%emt 0:00:39]} e5 {[%emt 0:01:47]} 34. Ke3 {[%emt 0:00:28]} Nf4 {[%emt 0:00:17]} 35. g3 {[%emt 0:00:21]} Ne6 {[%emt 0:00:16]} 36. Ke4 {[%emt 0:09:26]} Ke8 {[%emt 0:02:30]} 37. Kd5 {[%emt 0:00:11]} Kd7 {[%emt 0:00:19]} 38. a4 {[%emt 0:00:13]} b6 {[%emt 0:01:09]} 39. h3 {[%emt 0:00:14]} Nc7+ {[%emt 0:13:29]} 40. Bxc7 {[%emt 0:00:00]} Kxc7 {[%emt 0:00:00]} 41. h4 {[%emt 0:01:18]} Kd7 {[%emt 0:00:17]} 42. h5 {[%emt 0:00:11]} Ke7 {[%emt 0:00:25]} 43. Kc6 {[%emt 0:00:22]} e4 {[%emt 0:00:30]} 44. Kxb6 {[%emt 0:00:20]} e3 {[%emt 0:00:10]} 0-1